bitfinex-derivatives/quotes_BTCF0:USTF0_20210102
["timestamp","ask_amount","ask_price","bid_price","bid_amount"]
[1609550912676,0.00041655,29222.0,29213.0,0.10334826]
[1609550912876,0.00041655,29222.0,29213.0,0.03495921]
[1609550913077,0.00041655,29222.0,29214.0,0.03495883]
[1609550913478,0.00041655,29222.0,29213.0,0.03496002]
[1609550913675,0.00041655,29222.0,29215.0,0.00035686]
[1609550913877,0.00041655,29222.0,29212.0,1.75576477]
[1609550914278,0.00041655,29222.0,29213.0,0.0003569]
[1609550914678,0.18043158,29214.0,29213.0,0.0003569]
[1609550914877,0.41409158,29214.0,29213.0,0.0003569]
[1609550915277,0.41450826,29214.0,29213.0,0.0003569]
[1609550915478,0.41450826,29214.0,29211.0,0.0003569]
[1609550915877,0.41450826,29214.0,29213.0,0.0003569]
[1609550916080,0.41409158,29214.0,29212.0,0.0003569]
[1609550916277,0.41409158,29214.0,29210.0,2.00992073]
[1609550916278,0.41409158,29214.0,29213.0,0.0003569]
[1609550916880,0.43506164,29214.0,29211.0,0.0003569]
[1609550917079,0.43506164,29214.0,29213.0,0.00035762]
[1609550917479,0.43506164,29214.0,29212.0,0.00035762]
[1609550917480,1.05786652,29214.0,29212.0,0.00035762]
[1609550917680,1.05786652,29214.0,29206.0,0.18043158]
[1609550918081,1.0,29212.0,29207.0,0.00035763]
[1609550918783,0.18043158,29208.0,29207.0,0.00035763]
[1609550919184,0.28969158,29208.0,29207.0,0.00035763]
[1609550923386,0.28969158,29208.0,29206.0,0.18043158]
[1609550930599,0.28969158,29208.0,29200.0,1.0]
[1609550930797,0.10926,29208.0,29201.0,0.18043158]
[1609550930997,1.0,29211.0,29201.0,0.1807893]
[1609550931197,1.0,29211.0,29202.0,0.00035772]
[1609550932098,1.0,29204.0,29202.0,0.00035772]
[1609550932298,1.12376,29204.0,29202.0,0.00035772]
[1609550932897,0.18043158,29203.0,29202.0,0.00035772]
[1609550933400,0.28353158,29203.0,29201.0,0.00035774]
[1609550933597,0.18043158,29203.0,29202.0,0.00035774]
[1609550934097,0.18043158,29203.0,29200.0,1.0]
[1609550934098,0.18043158,29203.0,29201.0,0.00035774]
[1609550934597,0.28423158,29203.0,29201.0,0.00035774]
[1609550934798,0.18043158,29203.0,29201.0,0.18078932]
[1609550935198,0.18043158,29203.0,29202.0,0.00035774]
[1609550936000,0.28413158,29203.0,29202.0,0.00035774]
[1609550936600,0.18043158,29203.0,29202.0,0.00035774]
[1609550937302,0.18043158,29203.0,29201.0,0.00035774]
[1609550937603,0.18043158,29203.0,29202.0,0.00035774]
[1609550938103,0.18043158,29203.0,29201.0,0.00035774]
[1609550938304,0.18043158,29203.0,29200.0,1.0]
[1609550938305,0.18043158,29203.0,29202.0,0.00035774]
[1609550938606,0.18043158,29203.0,29201.0,0.00035774]
[1609550938904,0.18043158,29203.0,29200.0,1.0]
[1609550938905,0.18043158,29203.0,29202.0,0.00035774]
[1609550939404,0.18043158,29203.0,29201.0,0.00035774]
[1609550939705,0.18043158,29203.0,29202.0,0.00035774]
[1609550940305,0.18043158,29203.0,29201.0,0.00035774]
[1609550940505,0.18043158,29203.0,29202.0,0.00035774]
[1609550941005,0.18043158,29203.0,29201.0,0.00035774]
[1609550941206,0.18043158,29203.0,29202.0,0.00035774]
[1609550941605,0.18043158,29203.0,29201.0,0.00035774]
[1609550941806,0.18043158,29203.0,29202.0,0.00035774]
[1609550942306,0.18043158,29203.0,29201.0,0.00035774]
[1609550942707,0.18043158,29203.0,29202.0,0.00035774]
[1609550943108,0.18043158,29203.0,29201.0,0.00035774]
[1609550943308,0.18043158,29203.0,29202.0,0.00035774]
[1609550943711,0.18043158,29203.0,29201.0,0.00035772]
[1609550943908,0.18043158,29203.0,29202.0,0.00035772]
[1609550944509,0.18043158,29203.0,29201.0,0.00035772]
[1609550944708,0.18043158,29203.0,29202.0,0.00035772]
[1609550945209,0.18043158,29203.0,29201.0,0.00035772]
[1609550945509,0.18043158,29203.0,29202.0,0.00035772]
[1609550946109,0.18043158,29203.0,29201.0,0.00035772]
[1609550946314,0.18043158,29203.0,29202.0,0.00035772]
[1609550946711,0.18043158,29203.0,29201.0,0.00035772]
[1609550950918,0.18043158,29203.0,29202.0,0.18043158]
[1609550951320,0.18043158,29203.0,29202.0,1.1807893]
[1609550952321,0.18043158,29203.0,29202.0,1.21574195]
[1609550952520,0.18043158,29203.0,29202.0,1.1807893]
[1609550953321,0.18043158,29203.0,29202.0,1.21574282]
[1609550953621,0.18043158,29203.0,29202.0,1.1807893]
[1609550955125,0.18043158,29203.0,29202.0,0.1807893]
[1609550955524,0.18043158,29203.0,29202.0,0.21574211]
[1609550959832,0.17835017,29203.0,29202.0,0.21574211]
[1609550963540,0.17835017,29203.0,29202.0,1.21574211]
[1609550975155,0.12376,29204.0,29202.0,1.21574211]
[1609550975657,0.18043158,29205.0,29203.0,0.03530309]
[1609550978861,0.17835058,29205.0,29203.0,0.03530309]
[1609550981763,0.17835058,29205.0,29204.0,0.03]
[1609550982264,0.17835058,29205.0,29204.0,0.06472884]
[1609550987071,0.28631058,29205.0,29204.0,0.06472884]
[1609550989876,0.28422959,29205.0,29204.0,0.06472884]
[1609551004293,0.10796,29205.0,29204.0,0.06472884]
[1609551004693,0.13555907,29205.0,29204.0,0.06472884]
[1609551009807,0.18043158,29213.0,29204.0,0.06472884]
[1609551010403,0.18043158,29213.0,29205.0,0.03472217]
[1609551011605,0.18043158,29213.0,29212.0,0.18043158]
[1609551012105,0.18043158,29213.0,29212.0,0.21515392]
[1609551019013,0.18043158,29213.0,29212.0,0.18078791]
[1609551021117,0.18043158,29213.0,29212.0,0.00035633]
[1609551021616,0.18043158,29213.0,29205.0,0.03472707]
[1609551021817,1.13246,29214.0,29206.0,0.18043158]
[1609551022017,1.13246,29214.0,29212.0,0.00035638]
[1609551022218,0.13246,29214.0,29207.0,0.03472669]
[1609551022416,0.14695,29214.0,29213.0,0.00035638]
[1609551022717,0.14695,29214.0,29208.0,0.00035638]
[1609551022917,0.14695,29214.0,29213.0,0.00035638]
[1609551023317,0.14695,29214.0,29209.0,0.00035638]
[1609551023517,0.14695,29214.0,29213.0,0.00035638]
[1609551023720,0.32738158,29214.0,29210.0,0.00035638]
[1609551024019,0.32738158,29214.0,29213.0,0.0003564]
[1609551024220,0.32738158,29214.0,29211.0,0.0003564]
[1609551024621,0.32738158,29214.0,29207.0,0.03472669]
[1609551024820,0.32738158,29214.0,29212.0,0.00035638]
[1609551025020,0.32738158,29214.0,29208.0,0.00035638]
[1609551025421,0.32738158,29214.0,29213.0,0.00035638]
[1609551025621,0.32738158,29214.0,29209.0,0.00035638]
[1609551025821,0.14695,29214.0,29213.0,0.00035638]
[1609551026123,0.14695,29214.0,29210.0,0.18078796]
[1609551026324,0.14695,29214.0,29213.0,0.00035638]
[1609551026722,0.14695,29214.0,29211.0,0.00035638]
[1609551026923,0.14695,29214.0,29213.0,0.00035638]
[1609551027122,0.14695,29214.0,29212.0,0.00035638]
[1609551027423,0.14695,29214.0,29213.0,0.00035638]
[1609551027624,1.00435989,29216.0,29213.0,0.00035638]
[1609551027824,0.18043158,29214.0,29213.0,0.00035638]
[1609551028025,0.18043158,29214.0,29211.0,0.00035638]
[1609551028226,0.18043158,29214.0,29213.0,0.00035638]
[1609551028425,0.29192158,29214.0,29212.0,0.00035638]
[1609551028828,0.29192158,29214.0,29211.0,0.03472627]
[1609551029025,0.29192158,29214.0,29213.0,0.00035638]
[1609551029226,0.29192158,29214.0,29212.0,0.00035638]
[1609551029527,0.29192158,29214.0,29213.0,0.00035638]
[1609551030128,0.29192158,29214.0,29211.0,0.00035638]
[1609551030329,0.29192158,29214.0,29213.0,0.00035638]
[1609551030530,0.29192158,29214.0,29212.0,0.00035638]
[1609551030830,0.29192158,29214.0,29211.0,0.00035638]
[1609551031032,0.29192158,29214.0,29213.0,0.00035638]
[1609551031435,0.29192158,29214.0,29211.0,0.00035638]
[1609551031732,0.29192158,29214.0,29213.0,0.18078796]
[1609551031933,0.29192158,29214.0,29213.0,0.18043158]
[1609551032132,0.29192158,29214.0,29213.0,0.18078793]
[1609551035937,0.29192158,29214.0,29213.0,0.21515316]
[1609551038441,0.29192158,29214.0,29213.0,0.18078793]
[1609551039044,0.29192158,29214.0,29213.0,0.21523657]
[1609551046851,0.28984101,29214.0,29213.0,0.21523657]
[1609551052259,0.28984101,29214.0,29213.0,1.21523657]
[1609551056565,0.11149,29214.0,29213.0,1.21523657]
[1609551056764,0.00436183,29219.0,29213.0,1.21523657]
[1609551057366,0.00436183,29219.0,29214.0,0.0348071]
[1609551058069,0.00436183,29219.0,29218.0,0.18043158]
[1609551058469,0.00436183,29219.0,29218.0,0.21523555]
[1609551060071,0.18479341,29219.0,29218.0,0.21523555]
[1609551061074,0.18043158,29219.0,29218.0,0.21523555]
[1609551062276,0.18043158,29219.0,29218.0,1.21523555]
[1609551063177,0.18043158,29219.0,29218.0,0.21523555]
[1609551063779,0.34335158,29219.0,29218.0,0.21523555]
[1609551064279,0.34335158,29219.0,29218.0,1.21523555]
[1609551065480,0.34335158,29219.0,29218.0,0.21523555]
[1609551067283,0.16292,29219.0,29218.0,0.21523555]
[1609551068584,0.16292,29219.0,29218.0,1.21523555]
[1609551068884,0.1384206,29226.0,29218.0,1.21523555]
[1609551069484,0.1384206,29226.0,29219.0,0.03479374]
[1609551070289,0.1384206,29226.0,29225.0,0.18043158]
[1609551070686,0.1384206,29226.0,29225.0,0.18078797]
[1609551071387,0.1384206,29226.0,29225.0,1.18078797]
[1609551072390,0.1384206,29226.0,29225.0,0.18078797]
[1609551072789,0.1384206,29226.0,29225.0,1.18078797]
[1609551073890,0.1384206,29226.0,29225.0,0.18078797]
[1609551074089,0.1384206,29226.0,29225.0,1.18078797]
[1609551075090,0.1384206,29226.0,29225.0,0.18078797]
[1609551078297,0.1384206,29226.0,29225.0,1.18078797]
[1609551079400,0.13634098,29226.0,29225.0,0.18078797]
[1609551080602,0.13634098,29226.0,29225.0,1.18078797]
[1609551081903,0.13634098,29226.0,29225.0,0.18078797]
[1609551087207,0.13634098,29226.0,29225.0,1.18078797]
[1609551088410,0.13634098,29226.0,29225.0,0.18078797]
[1609551089712,0.13634098,29226.0,29225.0,0.21522137]
[1609551091816,0.1342614,29226.0,29225.0,0.21522137]
[1609551107934,0.13218188,29226.0,29225.0,0.21522137]
[1609551118752,0.13218188,29226.0,29225.0,2.00750353]
[1609551118952,0.13010249,29226.0,29225.0,2.00750353]
[1609551119152,0.13010249,29226.0,29225.0,2.07597942]
[1609551122961,0.13010249,29226.0,29225.0,0.28369726]
[1609551124359,0.13010249,29226.0,29225.0,0.21522137]
[1609551126163,1.13010249,29226.0,29225.0,0.21522137]
[1609551126761,1.31053407,29226.0,29225.0,0.21522137]
[1609551126962,1.31053407,29226.0,29225.0,2.01103916]
[1609551127263,1.31053407,29226.0,29225.0,1.97660576]
[1609551127865,1.31053407,29226.0,29225.0,0.18078797]
[1609551130166,0.31053407,29226.0,29225.0,0.18078797]
[1609551131267,0.13010249,29226.0,29225.0,0.18078797]
[1609551131466,0.13010249,29226.0,29225.0,0.21546616]
[1609551133672,0.13010249,29226.0,29225.0,2.01459765]
[1609551134070,0.13010249,29226.0,29225.0,3.01459765]
[1609551135273,0.13010249,29226.0,29225.0,2.01459765]
[1609551135274,0.1280231,29226.0,29225.0,2.01459765]
[1609551137476,0.1280231,29226.0,29225.0,3.01459765]
[1609551139278,0.1280231,29226.0,29225.0,5.05833341]
[1609551140582,0.1280231,29226.0,29225.0,4.05833341]
[1609551143883,0.1280231,29226.0,29225.0,5.05833341]
[1609551145688,0.12594379,29226.0,29225.0,5.05833341]
[1609551149497,0.12594379,29226.0,29225.0,4.05833341]
[1609551154306,0.12594379,29226.0,29225.0,2.01459765]
[1609551157408,0.1238644,29226.0,29225.0,2.01459765]
[1609551158609,0.1238644,29226.0,29225.0,2.08349357]
[1609551161212,0.1238644,29226.0,29225.0,4.125911]
[1609551163519,0.1238644,29226.0,29225.0,4.155911]
[1609551164719,0.1238644,29226.0,29225.0,5.155911]
[1609551167522,0.12178528,29226.0,29225.0,7.40961548]
[1609551169023,0.12321,29226.0,29225.0,7.40961548]
[1609551170124,0.10471,29226.0,29225.0,7.40961548]
[1609551171826,0.13493,29234.0,29225.0,7.40961548]
[1609551172026,0.13493,29234.0,29225.0,9.86377916]
[1609551172227,0.01023,29234.0,29225.0,9.86377916]
[1609551172426,0.62238603,29247.0,29227.0,1.0]
[1609551172828,0.52018603,29247.0,29228.0,0.10420682]
[1609551173029,0.52018603,29247.0,29229.0,1.0]
[1609551173227,0.52018603,29247.0,29246.0,0.18043158]
[1609551173428,0.52018603,29247.0,29246.0,1.18043158]
[1609551173628,0.74666478,29255.0,29246.0,1.18078894]
[1609551174229,0.74666478,29255.0,29247.0,0.00035733]
[1609551174427,0.74666478,29255.0,29247.0,0.03533514]
[1609551174629,2.16136335,29265.0,29247.0,0.03533514]
[1609551174630,0.74658794,29261.0,29247.0,0.03533514]
[1609551174826,0.74658794,29261.0,29247.0,0.00035733]
[1609551175029,0.74658794,29261.0,29248.0,0.00035733]
[1609551175229,0.74658794,29261.0,29260.0,0.18043158]
[1609551175631,0.18043158,29263.0,29260.0,0.18043158]
[1609551175830,0.18043158,29263.0,29260.0,0.18078891]
[1609551176028,0.18043158,29263.0,29260.0,0.18043158]
[1609551177332,0.28193158,29263.0,29260.0,0.18043158]
[1609551177531,0.28193158,29263.0,29246.0,1.79468053]
[1609551177732,0.43292158,29263.0,29246.0,1.79468053]
[1609551177931,0.43292158,29263.0,29247.0,0.00035733]
[1609551178533,0.43292158,29263.0,29246.0,0.00035735]
[1609551178733,0.43292158,29263.0,29248.0,0.00035735]
[1609551178933,0.43292158,29263.0,29247.0,0.00035735]
[1609551179134,0.43292158,29263.0,29249.0,0.00035735]
[1609551179333,0.25249,29263.0,29256.0,0.18043158]
[1609551180135,1.0,29257.0,29256.0,0.18043158]
[1609551180535,1.126,29257.0,29243.0,1.79703031]
[1609551181035,1.126,29257.0,29244.0,0.00035736]
[1609551181236,0.18043158,29253.0,29252.0,0.18043158]
[1609551182139,0.18043158,29253.0,29242.0,1.79322987]
[1609551182739,0.18043158,29253.0,29243.0,0.00035739]
[1609551183139,1.18043158,29253.0,29240.0,1.79323431]
[1609551183342,1.0,29253.0,29241.0,0.18043158]
[1609551183539,0.1032,29252.0,29241.0,0.18043158]
[1609551183938,0.1032,29252.0,29240.0,1.79323431]
[1609551184138,1.0,29242.0,29240.0,1.79323431]
[1609551184338,1.14261,29242.0,29240.0,1.79323431]
[1609551184740,1.14261,29242.0,29230.0,1.79994689]
[1609551185340,1.14261,29242.0,29238.0,0.18043158]
[1609551186140,0.14261,29242.0,29238.0,0.18043158]
[1609551187342,0.18043158,29239.0,29238.0,0.18043158]
[1609551188743,0.14261,29242.0,29238.0,0.18043158]
[1609551189342,0.18043158,29249.0,29241.0,0.18043158]
[1609551190546,0.18043158,29249.0,29242.0,0.00035743]
[1609551191244,0.18043158,29249.0,29248.0,0.18043158]
[1609551191744,0.18043158,29249.0,29233.0,1.79861869]
[1609551191944,0.33567158,29249.0,29233.0,1.79861869]
[1609551192146,0.33567158,29249.0,29234.0,0.00035743]
[1609551193448,0.15524,29249.0,29246.0,0.18043158]
[1609551194148,1.0,29247.0,29246.0,0.18043158]
[1609551195350,1.18043158,29247.0,29246.0,0.18043158]
[1609551198150,0.18043158,29247.0,29246.0,0.18043158]
[1609551199854,0.18043158,29247.0,29233.0,1.79887764]
[1609551200250,1.18043158,29247.0,29234.0,0.00035743]
[1609551201451,1.0,29247.0,29243.0,0.18043158]
[1609551202150,1.0,29244.0,29243.0,0.18043158]
[1609551203451,1.18043158,29244.0,29243.0,0.18043158]
[1609551204751,1.18883158,29244.0,29243.0,0.18043158]
[1609551209457,1.18883158,29244.0,29243.0,0.18078899]
[1609551209658,1.18883158,29244.0,29243.0,0.18043158]
[1609551209958,1.18883158,29244.0,29243.0,0.180789]
[1609551210157,0.18883158,29244.0,29243.0,0.180789]
[1609551212257,1.18883158,29244.0,29243.0,0.180789]
[1609551212658,1.18883158,29244.0,29243.0,0.00035742]
[1609551213157,1.18883158,29244.0,29231.0,0.10421047]
[1609551213357,1.18883158,29244.0,29243.0,0.00035742]
[1609551213760,1.18883158,29244.0,29238.0,0.18043158]
[1609551213958,1.18883158,29244.0,29243.0,0.00035742]
[1609551214159,1.0,29241.0,29239.0,0.03534036]
[1609551214360,1.11617,29241.0,29239.0,0.03534036]
[1609551214558,1.11617,29241.0,29239.0,1.03498294]
[1609551214758,1.11617,29241.0,29240.0,0.00035741]
[1609551215359,1.11617,29241.0,29240.0,0.03532816]
[1609551216161,0.11617,29241.0,29240.0,0.03532816]
[1609551216362,0.11409191,29241.0,29240.0,0.03532816]
[1609551219463,0.11409191,29241.0,29240.0,0.03497075]
[1609551219663,0.11409191,29241.0,29240.0,0.03532931]
[1609551219865,0.0084,29244.0,29240.0,0.03532931]
[1609551220465,0.0084,29244.0,29240.0,1.82890467]
[1609551220664,0.0084,29244.0,29241.0,1.0]
[1609551220964,0.0084,29244.0,29242.0,0.0358895]
[1609551221365,0.0084,29244.0,29243.0,1.79145339]
[1609551221565,0.0084,29244.0,29243.0,2.97188497]
[1609551221766,0.0084,29244.0,29243.0,3.00777547]
[1609551224768,0.18043158,29260.0,29243.0,3.00777547]
[1609551225370,0.18043158,29260.0,29244.0,0.03589123]
[1609551225669,0.18043158,29260.0,29259.0,0.18043158]
[1609551225869,0.15099,29263.0,29259.0,0.18043158]
[1609551226068,0.2891,29264.0,29259.0,0.18079007]
[1609551226269,0.2891,29264.0,29259.0,0.18043158]
[1609551227669,0.2891,29264.0,29263.0,0.18043158]
[1609551228169,1.2891,29264.0,29263.0,0.18043158]
[1609551229673,1.46953158,29264.0,29263.0,0.18043158]
[1609551230173,0.46953158,29264.0,29263.0,0.18043158]
[1609551232177,1.46953158,29264.0,29263.0,0.18043158]
[1609551232976,1.61729158,29264.0,29245.0,1.79069107]
[1609551233375,0.1012,29263.0,29246.0,0.00035851]
[1609551233777,0.1012,29263.0,29255.0,0.18043158]
[1609551234176,0.1012,29263.0,29245.0,1.79069107]
[1609551234680,0.00041612,29262.0,29246.0,0.00035856]
[1609551235680,0.00041612,29262.0,29248.0,0.18043158]
[1609551235979,0.00041612,29262.0,29249.0,0.00035856]
[1609551236180,5.0,29256.0,29249.0,0.00035856]
[1609551236380,0.1032,29255.0,29249.0,0.00035856]
[1609551236580,0.103,29254.0,29249.0,0.00035856]
[1609551237681,0.18043158,29250.0,29249.0,0.00035856]
[1609551237982,0.32067158,29250.0,29249.0,0.00035856]
[1609551238182,1.32067158,29250.0,29249.0,0.00035856]
[1609551240186,0.32067158,29250.0,29249.0,0.00035856]
[1609551242188,1.32067158,29250.0,29249.0,0.00035856]
[1609551254008,1.32067158,29250.0,29248.0,0.18043158]
[1609551256309,1.0,29249.0,29248.0,0.18043158]
[1609551257110,1.0,29249.0,29248.0,0.18079023]
[1609551257612,1.0,29249.0,29248.0,0.18043158]
[1609551258011,1.0,29249.0,29248.0,0.18079022]
[1609551268219,0.32067158,29250.0,29248.0,0.18079022]
[1609551268720,0.32067158,29250.0,29249.0,0.00035861]
[1609551276229,1.32067158,29250.0,29249.0,0.00035861]
[1609551282837,1.32067158,29250.0,29246.0,0.00035878]
[1609551283337,1.32067158,29250.0,29246.0,0.03598587]
[1609551283638,1.32067158,29250.0,29246.0,0.00035878]
[1609551283939,1.32067158,29250.0,29247.0,0.00035878]
[1609551284539,1.32067158,29250.0,29246.0,0.03598596]
[1609551284742,1.32067158,29250.0,29248.0,0.00035878]
[1609551284941,1.32067158,29250.0,29247.0,0.00035878]
[1609551285241,1.32067158,29250.0,29249.0,0.00035878]
[1609551285440,1.32067158,29250.0,29248.0,0.00035878]
[1609551285740,1.32067158,29250.0,29246.0,0.03598596]
[1609551285940,1.32067158,29250.0,29246.0,0.03562718]
[1609551286240,1.32067158,29250.0,29246.0,0.03598596]
[1609551286442,0.18043158,29247.0,29246.0,0.03598596]
[1609551290443,0.17835337,29247.0,29246.0,0.03598596]
[1609551300857,0.17627518,29247.0,29246.0,0.03598596]
[1609551303358,0.17627518,29247.0,29246.0,1.03598596]
[1609551304257,0.17627518,29247.0,29246.0,0.03598596]
[1609551305460,0.27787518,29247.0,29246.0,0.03598596]
[1609551306258,1.27829137,29247.0,29246.0,0.03598596]
[1609551306458,1.17669137,29247.0,29246.0,0.03598596]
[1609551307360,1.28019137,29247.0,29246.0,0.03598596]
[1609551307761,1.27977518,29247.0,29246.0,0.03598596]
[1609551308066,1.27977518,29247.0,29246.0,0.00035878]
[1609551308261,1.17627518,29247.0,29246.0,0.00035878]
[1609551310266,0.17627518,29247.0,29246.0,0.00035878]
[1609551316275,1.17627518,29247.0,29240.0,0.03599268]
[1609551316475,1.17627518,29247.0,29246.0,0.00035884]
[1609551316877,1.17627518,29247.0,29241.0,0.00035884]
[1609551316878,1.27717518,29247.0,29241.0,0.00035884]
[1609551317076,1.27717518,29247.0,29246.0,0.00035884]
[1609551317277,1.27717518,29247.0,29242.0,0.00035884]
[1609551317477,1.27717518,29247.0,29246.0,0.00035884]
[1609551317778,1.27759143,29247.0,29240.0,0.03599271]
[1609551318079,1.27717518,29247.0,29246.0,0.00035887]
[1609551318277,0.27717518,29247.0,29246.0,0.00035887]
[1609551318476,0.27717518,29247.0,29241.0,0.00035887]
[1609551318678,0.1009,29247.0,29246.0,0.00035887]
[1609551318877,0.1009,29247.0,29242.0,0.00035887]
[1609551319076,0.1009,29247.0,29246.0,0.00035887]
[1609551319476,0.1009,29247.0,29237.0,0.18043158]
[1609551319477,0.1009,29247.0,29243.0,0.00035887]
[1609551319677,0.10131626,29247.0,29246.0,0.00035887]
[1609551319877,0.1009,29247.0,29244.0,0.00035887]
[1609551320079,0.12186071,29247.0,29244.0,0.00035887]
[1609551320278,1.12186071,29247.0,29246.0,0.00035887]
[1609551320479,1.12186071,29247.0,29245.0,0.00035887]
[1609551320679,1.12186071,29247.0,29246.0,0.00035887]
[1609551321181,1.12186071,29247.0,29238.0,0.03599899]
[1609551321480,1.12186071,29247.0,29246.0,0.00035887]
[1609551321681,1.12186071,29247.0,29239.0,0.00035887]
[1609551321883,1.1009,29247.0,29239.0,0.00035887]
[1609551322083,1.1009,29247.0,29238.0,0.03599899]
[1609551322283,0.1009,29247.0,29240.0,0.00035887]
[1609551322482,0.1009,29247.0,29239.0,0.00035887]
[1609551322684,0.18043158,29240.0,29239.0,0.00035887]
[1609551322883,0.18043158,29240.0,29238.0,0.03599899]
[1609551323083,0.18043158,29240.0,29239.0,0.00035887]
[1609551323284,0.34866158,29240.0,29239.0,0.00035887]
[1609551323686,0.34866158,29240.0,29238.0,0.03599899]
[1609551323885,0.34866158,29240.0,29239.0,0.00035887]
[1609551324486,0.34866158,29240.0,29238.0,0.03599899]
[1609551324686,0.34866158,29240.0,29239.0,0.00035887]
[1609551325087,0.34866158,29240.0,29238.0,0.03599899]
[1609551326290,1.0,29239.0,29238.0,0.03599899]
[1609551326989,0.99792131,29239.0,29238.0,0.03599899]
[1609551327388,1.0,29239.0,29238.0,0.03599899]
[1609551331196,1.0,29239.0,29236.0,0.03599593]
[1609551331398,1.0,29238.0,29235.0,1.81046996]
[1609551331695,1.0,29238.0,29236.0,0.1057107]
[1609551332897,0.18043158,29237.0,29236.0,0.1057107]
[1609551333298,0.18043158,29237.0,29236.0,0.03599499]
[1609551334300,0.18043158,29237.0,29236.0,0.10570973]
[1609551335502,0.18043158,29237.0,29236.0,0.03599499]
[1609551336404,0.18043158,29237.0,29235.0,1.81046996]
[1609551336702,0.18043158,29237.0,29236.0,0.03599151]
[1609551336904,0.18043158,29237.0,29236.0,0.10570282]
[1609551337302,0.18043158,29237.0,29236.0,0.03599151]
[1609551337502,0.17835297,29237.0,29236.0,0.03599151]
[1609551339106,0.17835297,29237.0,29236.0,1.03599151]
[1609551339806,0.17835297,29237.0,29236.0,1.10559631]
[1609551343513,0.17835297,29237.0,29236.0,1.03599151]
[1609551344512,0.17835297,29237.0,29236.0,1.10559657]
[1609551346514,0.17835297,29237.0,29236.0,2.91029165]
[1609551348620,0.17627438,29237.0,29236.0,1.10559657]
[1609551350019,0.17627438,29237.0,29236.0,2.9113361]
[1609551350520,0.17627438,29237.0,29236.0,1.9113361]
[1609551353026,0.17627438,29237.0,29236.0,0.10559657]
[1609551359637,0.17419574,29237.0,29236.0,1.91673898]
[1609551367948,0.17419574,29237.0,29236.0,2.91673898]
[1609551370353,0.17211711,29237.0,29236.0,2.91673898]
[1609551375860,0.17211711,29237.0,29236.0,1.91673898]
[1609551379763,0.17211711,29237.0,29236.0,2.91673898]
[1609551379965,0.16823,29240.0,29236.0,2.84713392]
[1609551380165,1.0,29243.0,29236.0,2.84713392]
[1609551380466,1.0,29243.0,29237.0,0.03591128]
[1609551381368,0.03158324,29246.0,29237.0,0.03591128]
[1609551381764,0.00041621,29245.0,29237.0,0.03591128]
[1609551381965,0.00041621,29245.0,29244.0,0.18043158]
[1609551382365,0.00041621,29245.0,29244.0,1.21634263]
[1609551383867,0.18043158,29245.0,29244.0,1.21634263]
[1609551384666,0.18084779,29245.0,29244.0,1.21634263]
[1609551384866,0.18084779,29245.0,29244.0,0.21634263]
[1609551385567,0.18043158,29245.0,29244.0,0.21634263]
[1609551387870,0.18043158,29245.0,29244.0,0.18079025]
[1609551388371,0.18043158,29245.0,29244.0,0.21634145]
[1609551397285,0.17835324,29245.0,29244.0,0.21634145]
[1609551409304,0.17835324,29245.0,29244.0,1.21634145]
[1609551409502,0.14024,29250.0,29244.0,1.21634145]
[1609551409702,0.01058748,29251.0,29244.0,1.21634145]
[1609551409902,0.01058748,29251.0,29245.0,0.03562995]
[1609551410303,0.01058748,29251.0,29250.0,1.18043158]
[1609551410704,0.21196834,29252.0,29250.0,1.2160557]
[1609551411205,0.21196834,29252.0,29251.0,0.03562165]
[1609551411807,0.03153676,29252.0,29251.0,0.03562165]
[1609551412208,0.13356,29256.0,29251.0,0.03562165]
[1609551412408,0.03150818,29259.0,29251.0,0.03562165]
[1609551413109,0.00435154,29261.0,29251.0,0.03562165]
[1609551414213,0.00434832,29263.0,29260.0,0.18043158]
[1609551414609,0.00434832,29263.0,29261.0,0.00035788]
[1609551416411,0.35344923,29264.0,29261.0,0.00035788]
[1609551416611,0.33253589,29264.0,29261.0,0.00035788]
[1609551417511,0.43543589,29264.0,29261.0,0.00035788]
[1609551417912,0.43109158,29264.0,29261.0,0.00035788]
[1609551422221,0.43109158,29264.0,29263.0,0.18043158]
[1609551422423,0.32819158,29264.0,29263.0,0.18043158]
[1609551422823,0.32819158,29264.0,29263.0,0.18078946]
[1609551426222,0.14776,29264.0,29263.0,0.18078946]
[1609551427024,0.19532015,29267.0,29263.0,0.18078946]
[1609551427423,0.01488857,29267.0,29264.0,0.00035784]
[1609551427823,0.01488857,29267.0,29264.0,1.00035784]
[1609551428225,0.01488857,29267.0,29266.0,0.18043158]
[1609551428625,0.01488857,29267.0,29266.0,0.18078938]
[1609551431433,0.01488857,29267.0,29266.0,0.0003578]
[1609551431834,0.11758857,29267.0,29266.0,0.0003578]
[1609551432033,0.11758857,29267.0,29252.0,0.03560969]
[1609551432235,0.11758857,29267.0,29266.0,0.18043158]
[1609551432836,0.11758857,29267.0,29266.0,0.1807894]
[1609551433235,0.11758857,29267.0,29266.0,0.18043158]
[1609551433435,1.11758857,29267.0,29266.0,0.18043158]
[1609551434237,1.29802015,29267.0,29266.0,0.18043158]
[1609551435440,0.29802015,29267.0,29266.0,0.18043158]
[1609551436439,0.29802015,29267.0,29266.0,0.1807894]
[1609551437338,1.29802015,29267.0,29266.0,0.1807894]
[1609551437638,1.41302015,29267.0,29266.0,0.1807894]
[1609551441346,0.41302015,29267.0,29266.0,0.1807894]
[1609551441747,0.23258857,29267.0,29266.0,0.1807894]
[1609551443850,0.2177,29267.0,29266.0,0.1807894]
[1609551445851,0.115,29267.0,29266.0,0.1807894]
[1609551446051,0.00433889,29269.0,29266.0,0.1807894]
[1609551446253,0.16127,29267.0,29266.0,0.1807894]
[1609551446453,0.16127,29267.0,29266.0,0.18043158]
[1609551446651,0.16127,29267.0,29266.0,0.18078938]
[1609551446855,0.26327,29267.0,29266.0,0.18078938]
[1609551447354,1.26327,29267.0,29266.0,0.18078938]
[1609551449756,1.26327,29267.0,29266.0,0.0003578]
[1609551449954,1.26327,29267.0,29253.0,1.77886337]
[1609551450155,1.26327,29267.0,29254.0,0.03560537]
[1609551450356,1.26327,29267.0,29260.0,0.18043158]
[1609551450957,1.26327,29267.0,29261.0,0.00035783]
[1609551451357,1.0,29262.0,29260.0,0.18043158]
[1609551451757,1.0,29262.0,29261.0,0.00035786]
[1609551452359,1.18043158,29262.0,29261.0,0.00035786]
[1609551455359,0.18043158,29262.0,29261.0,0.00035786]
[1609551460367,0.18043158,29262.0,29261.0,0.03642473]
[1609551461570,0.1018,29265.0,29261.0,0.03642473]
[1609551462570,0.1018,29265.0,29264.0,0.18043158]
[1609551462770,0.26327,29267.0,29264.0,0.18043158]
[1609551462971,0.26327,29267.0,29264.0,0.18079115]
[1609551463172,0.26327,29267.0,29265.0,0.00035957]
[1609551466576,0.26327,29267.0,29265.0,0.03642319]
[1609551467976,0.26327,29267.0,29265.0,1.03642319]
[1609551468476,0.26327,29267.0,29266.0,0.00035955]
[1609551469477,0.26327,29267.0,29266.0,0.03642029]